bitfinex/quotes_SOLUSD_20260310
["timestamp","ask_amount","ask_price","bid_price","bid_amount"]
[1773178417977,6.2199184,85.875,85.862,2.25012987]
[1773178419061,6.2199184,85.875,85.87,4.1601337]
[1773178420365,13.90272803,85.894,85.871,13.8955049]
[1773178420561,7.21478029,85.893,85.872,2.25012987]
[1773178426874,11.64252782,85.892,85.872,2.25012987]
[1773178428086,2.11795907,85.891,85.872,2.25012987]
[1773178428390,11.64279892,85.89,85.872,2.25012987]
[1773178434202,7.21478029,85.893,85.881,2.2049592]
[1773178434698,3.20196136,85.909,85.882,2.2049592]
[1773178434901,104.3,85.91,85.891,2.2049592]
[1773178435200,2.03956264,85.929,85.901,2.2049592]
[1773178435579,2.03956264,85.928,85.891,2.2049592]
[1773178435778,2.03956264,85.919,85.891,2.2049592]
[1773178436374,2.03956264,85.917,85.891,2.2049592]
[1773178438686,13.67883821,85.916,85.891,2.2049592]
[1773178438998,13.67883821,85.916,85.901,2.2049592]
[1773178438999,11.63927557,85.916,85.901,2.2049592]
[1773178440503,2.03956264,85.918,85.901,2.2049592]
[1773178441593,2.03956264,85.929,85.901,2.2049592]
[1773178442813,11.63668794,85.936,85.903,2.2049592]
[1773178443109,11.63668794,85.936,85.911,2.2049592]
[1773178446203,11.63668794,85.936,85.913,2.2049592]
[1773178446397,2.03956264,85.951,85.921,2.2049592]
[1773178446993,11.63495082,85.948,85.922,11.63846279]
[1773178447202,11.63495082,85.948,85.923,2.2049592]
[1773178452586,11.63495082,85.948,85.925,2.2049592]
[1773178453010,11.63495082,85.948,85.93,4.1601337]
[1773178453212,11.63495082,85.948,85.931,2.2049592]
[1773178453597,11.63443285,85.952,85.931,2.2049592]
[1773178454698,11.63366074,85.958,85.933,2.2049592]
[1773178455117,11.63366074,85.958,85.941,2.2049592]
[1773178455315,0.2,85.97,85.941,2.2049592]
[1773178455316,3.59893627,85.954,85.941,2.2049592]
[1773178455616,1.79598621,85.954,85.941,0.96612837]
[1773178455793,1.79598621,85.954,85.94,4.15772851]
[1773178455794,0.82985784,85.954,85.94,4.15772851]
[1773178456906,0.82985784,85.954,85.941,11.63588973]
[1773178464293,0.82985784,85.954,85.94,4.15772851]
[1773178464294,2.25333536,85.953,85.94,4.15772851]
[1773178464710,2.25333536,85.953,85.94,15.79370281]
[1773178466215,0.82985784,85.954,85.94,15.79370281]
[1773178468221,0.82985784,85.954,85.933,0.14216157]
[1773178468413,0.82985784,85.954,85.94,4.15772851]
[1773178470520,0.82985784,85.954,85.941,11.63588973]
[1773178472508,0.82985784,85.954,85.932,29.09277102]
[1773178473624,0.82985784,85.954,85.933,0.14216157]
[1773178475320,2.25333536,85.959,85.933,0.14216157]
[1773178475921,2.25333536,85.957,85.931,11.63724383]
[1773178477435,11.63385918,85.956,85.93,4.15772851]
[1773178477619,2.25333536,85.955,85.931,11.63724383]
[1773178481728,2.25333536,85.955,85.94,4.15772851]
[1773178484326,2.25333536,85.953,85.94,4.15772851]
[1773178497830,2.25333536,85.953,85.93,4.15772851]
[1773178498643,2.25333536,85.951,85.93,4.15772851]
[1773178500033,2.25333536,85.951,85.931,11.63724383]
[1773178528737,2.25333536,85.969,85.94,4.15888306]
[1773178528943,0.2,85.97,85.96,4.15888306]
[1773178529161,2.25333536,85.976,85.96,4.15888306]
[1773178530146,2.25333536,85.983,85.961,11.63318248]
[1773178530350,2.25333536,85.987,85.97,4.15888306]
[1773178530560,11.62871828,85.994,85.97,4.15888306]
[1773178530742,2.25333536,86.003,85.98,4.15888306]
[1773178531753,2.25333536,86.001,85.98,4.15888306]
[1773178535272,2.25333536,85.999,85.98,4.15888306]
[1773178537949,2.25333536,86.001,85.981,11.6304765]
[1773178538149,2.25333536,85.999,85.98,4.15888306]
[1773178539573,2.25333536,85.997,85.98,4.15888306]
[1773178541269,2.25333536,85.997,85.97,4.15888306]
[1773178541778,2.25333536,85.995,85.971,11.63182933]
[1773178542968,11.62844783,85.996,85.971,11.63182933]
[1773178543290,11.62844783,85.996,85.98,4.15888306]
[1773178543460,2.25333536,85.995,85.98,4.15888306]
[1773178544159,2.25333536,85.993,85.97,4.15888306]
[1773178545680,2.25333536,85.991,85.971,11.63182933]
[1773178549875,2.25333536,85.991,85.98,4.15888306]
[1773178553982,2.25333536,85.989,85.97,4.15888306]
[1773178554295,2.25333536,85.997,85.98,4.15888306]
[1773178554479,2.25333536,85.995,85.98,4.15888306]
[1773178557390,2.25333536,85.995,85.97,4.15888306]
[1773178557569,2.25333536,85.993,85.97,4.15888306]
[1773178560572,2.25333536,85.993,85.971,11.63182933]
[1773178567700,2.25333536,85.991,85.962,11.63300072]
[1773178568395,4.15888306,85.99,85.952,11.63430887]
[1773178568594,2.25333536,85.989,85.952,11.63430887]
[1773178568799,2.25333536,85.987,85.952,11.63430887]
[1773178569492,2.25333536,85.987,85.96,4.15888306]
[1773178570993,11.6298002,85.986,85.961,11.63318248]
[1773178571198,2.25333536,85.985,85.97,4.15888306]
[1773178571586,2.25333536,85.993,85.97,4.15888306]
[1773178571781,2.25333536,85.993,85.98,4.15888306]
[1773178575607,2.25333536,85.991,85.98,4.15888306]
[1773178577705,2.25333536,85.989,85.98,4.15490768]
[1773178577910,2.25333536,85.989,85.97,4.15490768]
[1773178578908,11.6295297,85.988,85.97,4.15490768]
[1773178579516,13.88286506,85.988,85.97,4.15490768]
[1773178582617,2.25333536,85.987,85.97,4.15490768]
[1773178584597,2.25333536,85.985,85.97,4.15490768]
[1773178587616,11.63007071,85.984,85.97,4.15490768]
[1773178587914,2.25333536,85.983,85.97,4.15490768]
[1773178588407,2.25333536,85.983,85.963,11.63287683]
[1773178588615,2.25333536,85.983,85.96,4.15490768]
[1773178590610,2.25333536,85.981,85.961,11.63318248]
[1773178592912,1.16239872,86.008,85.943,1.16356189]
[1773178592913,2.25333536,85.979,85.951,11.63444454]
[1773178594606,11.63061177,85.98,85.84,4.25490768]
[1773178594607,12.49548231,85.978,85.84,4.25490768]
[1773178594810,2.02575909,85.876,85.84,4.25490768]
[1773178595113,7.79033884,85.875,85.86,4.15490768]
[1773178595306,2.02575909,85.889,85.86,4.15490768]
[1773178595506,2.02575909,85.887,85.86,4.15490768]
[1773178595839,2.02575909,85.885,85.85,4.25490768]
[1773178596008,2.02575909,85.883,85.85,4.25490768]
[1773178596211,2.02575909,85.881,85.85,4.25490768]
[1773178596411,2.02575909,85.879,85.86,4.15490768]
[1773178596621,2.02575909,85.877,85.86,4.15490768]
[1773178596922,2.02575909,85.873,85.86,4.15490768]
[1773178598012,2.02575909,85.871,85.85,4.25490768]
[1773178598204,9.90646383,85.88,85.86,4.15490768]
[1773178598404,9.47314079,85.88,85.865,0.43332304]
[1773178598605,2.17145059,85.879,85.86,4.15490768]
[1773178600226,2.17145059,85.877,85.85,0.1]
[1773178600425,2.17145059,85.877,85.86,4.15490768]
[1773178600631,41.71140979,85.899,85.87,8.30981536]
[1773178600815,2.17145059,85.912,85.89,4.15490768]
[1773178601021,2.17145059,85.912,85.9,4.15490768]
[1773178602216,2.17145059,85.91,85.9,4.15490768]
[1773178603110,2.17145059,85.91,85.884,11.66460942]
[1773178603314,2.17145059,85.91,85.9,4.15490768]
[1773178605323,13.81167454,85.909,85.9,4.15490768]
[1773178605524,2.17145059,85.908,85.9,4.15490768]
[1773178605724,2.17145059,85.908,85.884,11.66460942]
[1773178605925,2.17145059,85.908,85.89,4.15490768]
[1773178606351,1.64542684,85.899,85.821,2.02954296]
[1773178606647,1.79730223,85.889,85.841,2.02954296]
[1773178606831,1.66474291,85.885,85.851,2.02954296]
[1773178607147,1.66474291,85.883,85.851,2.02954296]
[1773178607439,1.66474291,85.881,85.851,2.02954296]
[1773178607643,7.69069388,85.88,85.851,2.02954296]
[1773178607824,1.67423487,85.881,85.851,2.02954296]
[1773178608019,7.68440275,85.88,85.851,2.02954296]
[1773178608356,1.67423487,85.881,85.851,2.02954296]
[1773178609346,40.75454121,85.88,85.851,2.02954296]
[1773178609943,11.64185012,85.897,85.87,6.21929175]
[1773178610151,29.10699732,85.89,85.87,6.21929175]
[1773178610525,29.10699732,85.89,85.871,2.06438407]
[1773178611429,29.10699732,85.89,85.774,11.64795228]
[1773178611430,2.76694563,85.768,85.714,2.14726028]
[1773178611627,0.21324235,85.828,85.663,11.6736514]
[1773178611632,4.15490768,85.73,85.68,4.15490768]
[1773178611833,4.15490768,85.73,85.67,4.15490768]
[1773178612124,2.0647484,85.709,85.65,4.15490768]
[1773178612329,4.15490768,85.7,85.646,7.53970607]
[1773178612542,4.15490768,85.69,85.646,7.53970607]
[1773178613343,2.0647484,85.688,85.649,3.69383402]
[1773178613638,2.0647484,85.688,85.621,2.06438407]
[1773178613639,11.21661865,85.68,85.621,2.06438407]
[1773178613840,11.21661865,85.67,85.622,2.06438407]
[1773178614023,11.21661865,85.67,85.624,3.69383402]
[1773178614225,11.21661865,85.67,85.629,2.06438407]
[1773178615136,11.21661865,85.67,85.631,2.06438407]
[1773178615331,11.67283381,85.669,85.631,2.06438407]
[1773178615536,2.0647484,85.659,85.621,7.45439367]
[1773178615724,11.21661865,85.65,85.621,7.45439367]
[1773178615922,13.28136705,85.65,85.621,7.45439367]
[1773178616121,11.21661865,85.65,85.621,7.45439367]
[1773178616326,2.0647484,85.668,85.622,2.06438407]
[1773178616541,11.21661865,85.66,85.622,2.06438407]
[1773178616748,2.0647484,85.668,85.621,7.45439367]
[1773178616749,2.0647484,85.668,85.628,2.06438407]
[1773178617047,2.0647484,85.668,85.63,2.06438407]
[1773178617347,2.0647484,85.668,85.621,7.59655524]
[1773178617348,2.0647484,85.696,85.651,2.06438407]
[1773178617547,11.66929225,85.695,85.651,2.06438407]
[1773178617945,11.66929225,85.695,85.49,2.06438407]
[1773178617946,1.61043658,85.678,85.49,2.06438407]
[1773178618150,1.61043658,85.678,85.352,2.62]
[1773178618151,1.61043658,85.619,85.561,2.06438407]
[1773178618355,1.61043658,85.619,85.571,2.06438407]
[1773178618648,1.61043658,85.619,85.571,1.56438407]
[1773178618846,3.69383402,85.647,85.591,2.0899529]
[1773178619053,11.21661865,85.64,85.591,2.0899529]
[1773178619352,40.86923013,85.639,85.591,2.0899529]
[1773178620753,29.19230724,85.639,85.591,2.0899529]
[1773178621450,0.60035399,85.645,85.601,2.0899529]
[1773178622845,11.67624118,85.644,85.601,2.0899529]
[1773178623052,40.86684414,85.644,85.601,2.0899529]
[1773178623261,11.67624118,85.644,85.611,2.0899529]
[1773178623837,11.41020428,85.644,85.611,2.0899529]
[1773178624040,55.29939354,85.65,85.621,2.0899529]
[1773178625355,11.67555955,85.649,85.621,2.0899529]
[1773178625761,11.67555955,85.649,85.631,2.0899529]
[1773178625965,27.27463587,85.65,85.631,2.0899529]
[1773178626145,24.33093966,85.65,85.644,2.06438407]
[1773178626342,21.38724345,85.65,85.644,2.06438407]
[1773178626664,11.67201634,85.675,85.644,2.06438407]
[1773178627252,11.67010934,85.689,85.644,2.06438407]
[1773178627457,11.67010934,85.689,85.648,2.06438407]
[1773178627647,11.67010934,85.689,85.651,2.06438407]
[1773178628051,11.67010934,85.689,85.66,11.21661865]
[1773178628264,11.67010934,85.689,85.651,2.06438407]
[1773178629145,29.17282352,85.697,85.651,2.06438407]
[1773178629354,29.17282352,85.697,85.637,3.69383402]
[1773178629355,2.0647484,85.679,85.641,2.06438407]
[1773178629653,2.0647484,85.679,85.62,11.21661865]
[1773178629654,2.0647484,85.659,85.62,2.06438407]
[1773178629960,13.28136705,85.65,85.62,2.06438407]
[1773178630161,13.28136705,85.66,85.62,2.06438407]
[1773178630344,13.28136705,85.66,85.62,1.58899283]
[1773178630754,2.0647484,85.659,85.62,1.58899283]
[1773178631262,2.0647484,85.659,85.59,4.82477569]
[1773178631264,8.06967931,85.545,85.45,11.21661865]
[1773178631563,11.21661865,85.51,85.46,11.21661865]
[1773178631952,11.21661865,85.51,85.436,52.52]
[1773178632142,11.21661865,85.51,85.46,11.21661865]
[1773178632462,11.21661865,85.52,85.471,2.54197005]
[1773178632965,11.21661865,85.52,85.471,2.04197005]
[1773178633156,0.14216157,85.509,85.436,52.52]
[1773178633361,0.14216157,85.509,85.46,11.21661865]
[1773178633567,11.21661865,85.48,85.436,52.52]
[1773178633857,11.21661865,85.47,85.436,52.52]
[1773178634048,11.21661865,85.48,85.436,52.52]
[1773178634661,0.90930996,85.495,85.436,52.52]
[1773178634861,0.76714839,85.495,85.437,2.29197005]
[1773178635169,11.21661865,85.49,85.441,2.29197005]
[1773178635344,11.21661865,85.5,85.45,11.21661865]
[1773178635545,11.6939032,85.515,85.471,2.29197005]
[1773178635745,11.69330791,85.519,85.481,2.29197005]
[1773178636358,12.10859498,85.526,85.491,2.29197005]
[1773178636874,11.69248757,85.525,85.492,2.29197005]
[1773178637368,12.10859498,85.526,85.492,2.29197005]
[1773178637948,29.22278541,85.55,85.485,0.14216157]
[1773178638152,29.22278541,85.55,85.484,2.29197005]
[1773178638153,11.68920735,85.549,85.501,2.29197005]
[1773178638759,11.68920735,85.549,85.489,0.14216157]
[1773178638760,11.68920735,85.549,85.511,2.29197005]
[1773178639645,11.68784113,85.559,85.511,2.29197005]
[1773178640758,11.68442963,85.584,85.55,11.25466941]
[1773178640955,11.68442963,85.584,85.56,11.25466941]
[1773178641155,11.68442963,85.584,85.54,3.69383402]
[1773178641156,11.68442963,85.584,85.55,11.25466941]
[1773178641356,11.25466941,85.58,85.534,52.58]
[1773178641559,2.5079037,85.579,85.54,11.25466941]
[1773178641772,14.1931499,85.578,85.54,11.25466941]
[1773178642155,2.5079037,85.577,85.54,11.25466941]
[1773178642655,2.73744675,85.597,85.57,11.25466941]
[1773178642866,2.73744675,85.597,85.56,11.25466941]
[1773178642867,11.68278891,85.596,85.56,11.25466941]
[1773178643387,11.68278891,85.596,85.57,11.25466941]
[1773178643758,29.20139784,85.613,85.57,11.25466941]
[1773178645369,29.20139784,85.613,85.58,11.25466941]
[1773178645754,31.70930154,85.613,85.58,11.25466941]
[1773178646068,2.5079037,85.612,85.58,11.25466941]
[1773178646475,11.68074196,85.611,85.58,11.25466941]
[1773178646650,2.5079037,85.61,85.57,11.25466941]
[1773178649171,11.68101484,85.609,85.57,13.7128561]
[1773178649375,2.5079037,85.608,85.556,2.45818669]
[1773178649577,2.5079037,85.599,85.56,11.25466941]
[1773178649964,2.5079037,85.599,85.556,2.45818669]
[1773178650272,2.5079037,85.599,85.556,1.95818669]
[1773178650483,11.25466941,85.59,85.556,1.95818669]
[1773178650679,2.5079037,85.599,85.556,1.95818669]
[1773178651685,2.5079037,85.597,85.556,1.95818669]
[1773178654774,11.25466941,85.59,85.556,1.95818669]
[1773178655378,11.68278891,85.596,85.556,1.95818669]
[1773178655379,2.5079037,85.595,85.556,1.95818669]
[1773178656184,7.60580739,85.594,85.556,1.95818669]
[1773178656472,10.11371109,85.593,85.556,1.95818669]
[1773178656682,10.11371109,85.592,85.556,1.95818669]
[1773178656881,11.68360789,85.59,85.556,1.95818669]
[1773178657286,7.61364788,85.589,85.556,1.95818669]
[1773178657586,7.61364788,85.588,85.556,1.95818669]
[1773178657768,2.5079037,85.592,85.556,1.95818669]
[1773178658297,11.68360789,85.59,85.556,1.95818669]
[1773178658788,14.19151159,85.59,85.556,1.95818669]
[1773178658981,2.5079037,85.589,85.556,1.95818669]
[1773178659290,11.68388091,85.588,85.556,1.95818669]
[1773178660188,11.68388091,85.588,85.56,11.25466941]
[1773178660387,29.20253711,85.609,85.56,11.25466941]
[1773178660574,29.20253711,85.609,85.561,2.45818669]
[1773178661884,40.88355195,85.609,85.561,2.45818669]
[1773178662488,2.5079037,85.608,85.561,2.45818669]
[1773178664493,2.5079037,85.606,85.561,2.45818669]
[1773178666890,40.88546229,85.605,85.561,2.45818669]
[1773178667098,2.82725513,85.604,85.561,2.45818669]
[1773178670091,2.77496919,85.602,85.561,2.45818669]
[1773178670422,2.77496919,85.602,85.533,4.82477569]
[1773178670423,6.46880321,85.567,85.44,11.25466941]
[1773178670578,2.77496919,85.559,85.49,11.25466941]
[1773178670778,0.14216157,85.552,85.51,11.25466941]
[1773178670989,2.77496919,85.553,85.5,11.25466941]
[1773178671200,2.77496919,85.562,85.5,11.25466941]
[1773178671498,2.77496919,85.579,85.54,11.25466941]
[1773178671796,2.77496919,85.577,85.54,11.25466941]
[1773178672002,2.77496919,85.577,85.53,11.25466941]
[1773178672203,2.77496919,85.575,85.501,0.14216157]
[1773178672400,2.77496919,85.575,85.529,2.87112842]
[1773178672581,2.77496919,85.575,85.54,11.25466941]
[1773178672977,1.46072405,85.574,85.54,11.25466941]
[1773178673183,2.77496919,85.573,85.529,2.87112842]
[1773178673383,2.77496919,85.573,85.54,11.25466941]
[1773178673584,2.77496919,85.569,85.531,2.87112842]
[1773178673884,2.77496919,85.569,85.53,11.25466941]
[1773178674094,40.90314135,85.568,85.53,11.25466941]
[1773178674278,2.77496919,85.567,85.53,11.25466941]
[1773178674485,2.77496919,85.567,85.54,11.25466941]
[1773178674685,2.77496919,85.567,85.526,2.87112842]
[1773178674997,2.77496919,85.567,85.531,2.87112842]
[1773178675200,11.25466941,85.56,85.5,52.58]
[1773178675389,2.77496919,85.559,85.51,11.25466941]
[1773178675978,2.77496919,85.559,85.52,11.25466941]
[1773178676403,2.77496919,85.557,85.52,11.25466941]
[1773178676592,2.77496919,85.557,85.5,52.58]
[1773178676908,2.77496919,85.539,85.5,63.83466941]
[1773178677301,2.77496919,85.539,85.5,52.58]
[1773178677604,2.77496919,85.539,85.494,2.87112842]
[1773178677797,2.77496919,85.529,85.465,2.87112842]
[1773178678004,2.77496919,85.529,85.481,2.87112842]
[1773178678502,2.77496919,85.527,85.481,2.87112842]
[1773178678693,2.77496919,85.519,85.481,2.87112842]
[1773178679407,2.77496919,85.519,85.48,11.25466941]
[1773178679903,2.77496919,85.509,85.472,2.87112842]
[1773178680104,2.77496919,85.509,85.47,11.25466941]
[1773178680305,2.77496919,85.499,85.464,52.58]
[1773178680488,2.77496919,85.489,85.44,11.25466941]
[1773178680688,2.77496919,85.487,85.45,11.25466941]
[1773178682210,2.77496919,85.487,85.441,2.87112842]
[1773178682708,11.25466941,85.49,85.441,2.87112842]
[1773178682709,2.77496919,85.485,85.441,2.87112842]
[1773178683300,2.77496919,85.485,85.451,2.87112842]
[1773178684199,11.69717113,85.491,85.471,2.87112842]
[1773178684391,11.69453865,85.51,85.481,2.87112842]
[1773178684706,11.69453865,85.51,85.49,11.25466941]
[1773178684890,11.69317118,85.52,85.49,11.25466941]
[1773178685088,11.69317118,85.52,85.491,2.87112842]
[1773178685305,11.69245874,85.526,85.5,11.25466941]
[1773178685508,1.46106552,85.554,85.5,11.25466941]
[1773178685509,2.77496919,85.525,85.5,11.25466941]
[1773178685710,11.25466941,85.52,85.481,3.1125154]
[1773178685915,0.04990948,85.519,85.481,3.1125154]
[1773178687206,0.04990948,85.519,85.359,23.28]
[1773178687207,2.77496919,85.509,85.47,11.25466941]
[1773178688713,2.77496919,85.507,85.46,11.25466941]
[1773178689015,11.25466941,85.51,85.437,3.69383402]
[1773178689016,2.77496919,85.505,85.47,11.25466941]
[1773178689210,4.2368891,85.504,85.47,14.12579783]
[1773178690411,2.77496919,85.479,85.44,11.25466941]
[1773178690619,2.77496919,85.479,85.45,11.25466941]
[1773178691007,2.77496919,85.479,85.44,11.25466941]
[1773178691798,2.77496919,85.479,85.38,11.25466941]
[1773178692103,2.77496919,85.469,85.44,11.25466941]
[1773178692303,2.77496919,85.467,85.434,2.87112842]
[1773178693209,2.77496919,85.459,85.309,23.28]
[1773178693401,2.77496919,85.448,85.32,11.25466941]
[1773178693607,2.77496919,85.448,85.4,11.25466941]
[1773178693802,2.77496919,85.439,85.4,11.25466941]
[1773178694207,2.77496919,85.437,85.4,11.25466941]
[1773178694410,2.77496919,85.437,85.39,11.25466941]
[1773178694604,2.77496919,85.437,85.4,11.25466941]
[1773178694911,2.77496919,85.429,85.39,11.25466941]
[1773178695105,2.77496919,85.429,85.4,11.25466941]
[1773178695517,2.77496919,85.429,85.39,11.25466941]
[1773178696015,2.77496919,85.429,85.4,11.25466941]
[1773178696623,2.77496919,85.427,85.391,2.87112842]
[1773178696921,2.77496919,85.427,85.4,11.25466941]
[1773178697705,2.77496919,85.427,85.4,11.27826159]
[1773178697921,11.70603797,85.426,85.4,11.27826159]
[1773178698419,11.70603797,85.426,85.401,2.87112842]
[1773178698623,2.77496919,85.447,85.42,11.27826159]
[1773178698809,2.77496919,85.457,85.43,11.27826159]
[1773178699118,2.77496919,85.457,85.401,11.70946476]
[1773178699119,11.70075975,85.465,85.44,11.27826159]
[1773178699500,11.70075975,85.465,85.44,14.40474251]
[1773178699910,29.25010558,85.47,85.45,11.27826159]
[1773178700117,11.69919041,85.476,85.45,11.27826159]
[1773178700321,11.69919041,85.476,85.451,3.12648092]
[1773178700517,11.69837991,85.482,85.451,3.12648092]
[1773178700821,11.69837991,85.482,85.44,11.70400806]
[1773178700822,11.69837991,85.482,85.47,11.27826159]
[1773178701022,11.69837991,85.482,85.46,14.40474251]
[1773178701326,11.69837991,85.482,85.44,11.70400806]
[1773178701327,2.92565118,85.481,85.441,3.12648092]
[1773178701625,2.92565118,85.481,85.45,11.27826159]
[1773178702022,2.92565118,85.479,85.441,3.12648092]
[1773178702907,2.92565118,85.479,85.45,11.27826159]
[1773178703927,2.92565118,85.479,85.441,3.12648092]
[1773178704329,11.69891668,85.478,85.441,3.12648092]
[1773178704507,2.92565118,85.477,85.441,3.12648092]
[1773178705029,2.92565118,85.477,85.45,11.27826159]
[1773178705217,2.92565118,85.477,85.441,3.12648092]
[1773178705921,11.69919041,85.476,85.45,11.27826159]
[1773178706608,11.69741136,85.489,85.46,11.27826159]
[1773178707510,11.69741136,85.489,85.47,11.27826159]
[1773178708123,2.92565118,85.503,85.48,11.27826159]
[1773178708511,2.92565118,85.503,85.471,3.12648092]
[1773178708712,2.92565118,85.503,85.48,11.27826159]
[1773178708914,40.93184263,85.508,85.48,11.27826159]
[1773178709309,40.93184263,85.508,85.48,14.40474251]
[1773178710434,40.93184263,85.508,85.481,3.12648092]
[1773178711012,11.69481218,85.508,85.481,3.12648092]
[1773178711824,11.69481218,85.508,85.49,11.27826159]
[1773178712031,11.69481218,85.508,85.5,11.27826159]
[1773178712331,29.23338135,85.519,85.491,3.12648092]
[1773178712838,29.23338135,85.519,85.5,11.27826159]
[1773178713735,11.69262429,85.524,85.5,11.27826159]
[1773178714510,11.69262429,85.524,85.51,11.27826159]
[1773178716814,29.22898605,85.532,85.51,11.27826159]
[1773178717035,29.22898605,85.532,85.501,3.12648092]
[1773178717227,29.22898605,85.532,85.51,11.27826159]
[1773178717832,2.92565118,85.531,85.501,3.12648092]
[1773178720134,40.92131415,85.53,85.501,3.12648092]
[1773178720342,43.84696533,85.53,85.501,3.12648092]
[1773178724329,29.22951011,85.53,85.51,11.27826159]
[1773178725651,29.22951011,85.53,85.51,14.40474251]
[1773178727730,11.69125727,85.534,85.511,2.92633451]
[1773178728649,3.16696747,85.541,85.511,2.92633451]
[1773178730553,3.16696747,85.541,85.479,0.14216157]
[1773178730554,3.16696747,85.541,85.52,11.27826159]
[1773178730763,11.69043722,85.54,85.52,11.27826159]
[1773178731349,11.69043722,85.54,85.517,3.20139707]
[1773178732353,11.69043722,85.54,85.52,11.27826159]
[1773178732554,11.69043722,85.54,85.517,3.20139707]
[1773178736555,11.69043722,85.54,85.52,14.47965866]
[1773178736743,11.69043722,85.54,85.521,3.20139707]
[1773178738447,11.68907071,85.55,85.521,3.20139707]
[1773178738643,11.68907071,85.55,85.531,3.20139707]
[1773178741339,46.71687621,85.623,85.533,3.20139707]
[1773178741546,46.71687621,85.623,85.55,11.27826159]
[1773178741547,3.07122422,85.573,85.55,11.27826159]
[1773178741839,3.07122422,85.573,85.55,14.47965866]
[1773178742560,11.68606553,85.572,85.55,14.47965866]
[1773178743360,11.68606553,85.572,85.551,3.20139707]
[1773178743752,3.07122422,85.584,85.561,3.20139707]
[1773178744345,3.07122422,85.578,85.505,3.20139707]
[1773178744546,3.07122422,85.569,85.532,3.20139707]
[1773178745160,3.07122422,85.569,85.525,3.20139707]
[1773178745365,3.07122422,85.559,85.52,11.27826159]
[1773178745754,3.07122422,85.559,85.53,11.27826159]
[1773178746256,3.07122422,85.559,85.521,3.20139707]
[1773178746460,3.07122422,85.557,85.521,3.20139707]
[1773178748168,3.07122422,85.557,85.53,11.27826159]
[1773178748966,40.90887839,85.556,85.531,3.20139707]
[1773178749345,43.98010261,85.556,85.531,3.20139707]
[1773178750069,3.07122422,85.555,85.52,11.27826159]
[1773178750659,3.07122422,85.549,85.51,11.27826159]
[1773178751956,3.07122422,85.547,85.51,11.27826159]
[1773178752253,3.07122422,85.539,85.5,11.27826159]
[1773178753962,3.07122422,85.537,85.5,11.27826159]
[1773178756779,3.07122422,85.535,85.501,0.63624727]
[1773178756958,3.07122422,85.535,85.51,11.27826159]
[1773178758870,14.76248149,85.534,85.51,11.27826159]
[1773178759573,14.76248149,85.534,85.51,11.24947269]
[1773178760976,3.16089578,85.54,85.511,0.63137987]
[1773178764770,14.85146967,85.539,85.52,4.19959287]
[1773178765082,14.85146967,85.539,85.513,0.62649791]
[1773178765277,3.16089578,85.538,85.513,0.62649791]
[1773178765869,14.85174301,85.537,85.513,0.62649791]
[1773178766874,3.16089578,85.536,85.513,0.62649791]
[1773178768072,11.69112059,85.535,85.513,0.62649791]
[1773178769581,1.46098014,85.559,85.521,0.61821514]
[1773178769582,3.16089578,85.552,85.521,0.61821514]
[1773178769876,3.16089578,85.552,85.53,4.19959287]
[1773178770062,3.16089578,85.552,85.526,0.61653805]
[1773178770876,11.68943403,85.548,85.526,0.61653805]
[1773178771785,3.22383827,85.529,85.49,4.19959287]
[1773178772285,3.22383827,85.529,85.5,4.19959287]
[1773178772467,3.22383827,85.529,85.49,4.19959287]
[1773178772875,3.22383827,85.527,85.491,64.29710351]
[1773178773367,14.91519166,85.534,85.51,4.19959287]
[1773178775892,14.91517847,85.534,85.52,4.19959287]
[1773178776068,14.91517847,85.534,85.51,4.19959287]
[1773178776264,3.22383827,85.533,85.5,11.69590643]
[1773178776470,3.22383827,85.533,85.491,52.6]
[1773178776670,3.22383827,85.533,85.492,11.69700088]
[1773178777369,3.22383827,85.533,85.5,4.19959287]
[1773178778686,3.22383827,85.519,85.48,4.19959287]
[1773178779970,3.22383827,85.517,85.481,11.6985061]
[1773178781786,3.22383827,85.517,85.481,11.74145472]
[1773178782787,3.22383827,85.515,85.481,11.74145472]
[1773178783885,3.22383827,85.515,85.482,0.03866617]
[1773178784989,3.22383827,85.513,85.49,4.19959287]
[1773178785292,3.22383827,85.513,85.487,0.03652258]
[1773178786276,3.22383827,85.513,85.49,4.19959287]
[1773178787794,14.9181034,85.512,85.49,4.19959287]
[1773178788092,3.22383827,85.511,85.49,4.19959287]
[1773178791000,14.91837692,85.51,85.487,0.03652258]
[1773178791288,3.22383827,85.509,85.487,0.03652258]
[1773178792673,11.69453865,85.51,85.487,0.03652258]
[1773178793003,3.22383827,85.518,85.491,0.02091701]
[1773178793607,3.22383827,85.518,85.48,4.19959287]
[1773178793608,3.22383827,85.516,85.482,0.02091701]
[1773178797584,29.23144926,85.525,85.482,0.02091701]
[1773178797585,3.22383827,85.514,85.482,0.02091701]
[1773178800204,29.22438482,85.545,85.5,4.19959287]
[1773178800381,3.22383827,85.544,85.5,4.19959287]
[1773178800680,3.22383827,85.539,85.5,4.19959287]
[1773178801082,3.22383827,85.544,85.5,4.19959287]
[1773178801305,3.22383827,85.544,85.484,3.69383402]
[1773178801306,3.22383827,85.544,85.51,4.19959287]
[1773178801477,3.22383827,85.544,85.5,4.19959287]
[1773178802601,3.22383827,85.542,85.51,4.19959287]